[Event "*** SCC Grand Prix: Titled Tuesday Blitz"]
[Site "Chess.com"]
[Date "2020.09.08"]
[Round "4"]
[White "MFBerna"]
[Black "Zemerovv"]
[Result "1/2-1/2"]
[WhiteElo "2452"]
[BlackElo "2299"]
[TimeControl "180+1"]
[EndTime "10:41:16 PDT"]
[Termination "Game drawn - insufficient material"]

1. d4 {[%clk 0:03:00.9]} 1... e6 {[%clk 0:02:59.6]} 2. e4 {[%clk 0:03:00.3]}
2... d5 {[%clk 0:02:58.3]} 3. Nc3 {[%clk 0:02:57.6]} 3... Bb4 {[%clk 0:02:54]}
4. e5 {[%clk 0:02:57.5]} 4... Ne7 {[%clk 0:02:52.1]} 5. Ne2 {[%clk 0:02:44.4]}
5... b6 {[%clk 0:02:49.8]} 6. a3 {[%clk 0:02:44.5]} 6... Bxc3+ {[%clk
0:02:49.3]} 7. Nxc3 {[%clk 0:02:45.4]} 7... Ba6 {[%clk 0:02:49.1]} 8. Bg5 {[%clk
0:02:26.9]} 8... Bxf1 {[%clk 0:02:45.9]} 9. Rxf1 {[%clk 0:02:27.8]} 9... h6
{[%clk 0:02:42.8]} 10. Qh5 {[%clk 0:02:25.4]} 10... Qd7 {[%clk 0:02:34.7]} 11.
O-O-O {[%clk 0:02:05.5]} 11... Nbc6 {[%clk 0:02:33.9]} 12. Bxe7 {[%clk
0:02:00.3]} 12... Qxe7 {[%clk 0:02:30.2]} 13. f4 {[%clk 0:02:00.4]} 13... g6
{[%clk 0:02:28.8]} 14. Qe2 {[%clk 0:01:53.2]} 14... h5 {[%clk 0:02:22.3]} 15. g3
{[%clk 0:01:52.9]} 15... Na5 {[%clk 0:02:19.7]} 16. h3 {[%clk 0:01:36.9]} 16...
Nc4 {[%clk 0:02:13.6]} 17. g4 {[%clk 0:01:37]} 17... hxg4 {[%clk 0:02:11.7]} 18.
hxg4 {[%clk 0:01:37.9]} 18... O-O-O {[%clk 0:02:11.4]} 19. f5 {[%clk 0:01:16.9]}
19... gxf5 {[%clk 0:02:07.4]} 20. gxf5 {[%clk 0:01:17.8]} 20... Kb8 {[%clk
0:02:06.9]} 21. f6 {[%clk 0:01:08.2]} 21... Qf8 {[%clk 0:02:05.1]} 22. Rh1
{[%clk 0:01:02.5]} 22... Rxh1 {[%clk 0:02:01.5]} 23. Rxh1 {[%clk 0:01:01.7]}
23... c5 {[%clk 0:02:02.1]} 24. Qf2 {[%clk 0:00:49.7]} 24... cxd4 {[%clk
0:01:57.1]} 25. Qxd4 {[%clk 0:00:49.4]} 25... Rc8 {[%clk 0:01:56.8]} 26. Rh7
{[%clk 0:00:34]} 26... Kb7 {[%clk 0:01:17.6]} 27. Nxd5 {[%clk 0:00:29]} 27...
Nxa3 {[%clk 0:01:07.5]} 28. Ne3 {[%clk 0:00:16.1]} 28... Nb5 {[%clk 0:00:57.5]}
29. Qd7+ {[%clk 0:00:15.5]} 29... Nc7 {[%clk 0:00:55.1]} 30. Rxf7 {[%clk
0:00:14.9]} 30... Qh8 {[%clk 0:00:52]} 31. Qxe6 {[%clk 0:00:11.8]} 31... Qh6
{[%clk 0:00:41.8]} 32. Qd5+ {[%clk 0:00:07.7]} 32... Kb8 {[%clk 0:00:34]} 33.
Qe4 {[%clk 0:00:08]} 33... Qh5 {[%clk 0:00:27]} 34. Rg7 {[%clk 0:00:05.3]} 34...
Qe2 {[%clk 0:00:25.2]} 35. b3 {[%clk 0:00:05]} 35... Nd5 {[%clk 0:00:19.7]} 36.
Qxd5 {[%clk 0:00:02.9]} 36... Qxe3+ {[%clk 0:00:19.6]} 37. Kb2 {[%clk
0:00:03.5]} 37... Qc3+ {[%clk 0:00:19]} 38. Ka3 {[%clk 0:00:04]} 38... Qa1+
{[%clk 0:00:16.2]} 39. Kb4 {[%clk 0:00:04.6]} 39... a5+ {[%clk 0:00:15.1]} 40.
Kb5 {[%clk 0:00:03.1]} 40... Rc5+ {[%clk 0:00:15]} 41. Qxc5 {[%clk 0:00:03.1]}
41... bxc5 {[%clk 0:00:15.4]} 42. Kxc5 {[%clk 0:00:02.9]} 42... Qxe5+ {[%clk
0:00:13.9]} 43. Kc4 {[%clk 0:00:02.3]} 43... Qxf6 {[%clk 0:00:13.4]} 44. Rd7
{[%clk 0:00:02.5]} 44... Qe6+ {[%clk 0:00:12]} 45. Rd5 {[%clk 0:00:02.9]} 45...
Kb7 {[%clk 0:00:12]} 46. Kd4 {[%clk 0:00:03.5]} 46... Kb6 {[%clk 0:00:11.1]} 47.
c4 {[%clk 0:00:03.2]} 47... Qf6+ {[%clk 0:00:10]} 48. Kd3 {[%clk 0:00:03.2]}
48... Qf1+ {[%clk 0:00:09]} 49. Kd4 {[%clk 0:00:03.2]} 49... Qd1+ {[%clk
0:00:08.1]} 50. Kc3 {[%clk 0:00:02.7]} 50... Qc1+ {[%clk 0:00:07.9]} 51. Kd3
{[%clk 0:00:03]} 51... Qb2 {[%clk 0:00:07.7]} 52. Rb5+ {[%clk 0:00:03.9]} 52...
Ka6 {[%clk 0:00:07.3]} 53. Ke4 {[%clk 0:00:03.6]} 53... Qc2+ {[%clk 0:00:06.8]}
54. Kd4 {[%clk 0:00:03.6]} 54... Qd2+ {[%clk 0:00:06.4]} 55. Kc5 {[%clk
0:00:03.6]} 55... Qd7 {[%clk 0:00:05.3]} 56. Rb6+ {[%clk 0:00:03]} 56... Ka7
{[%clk 0:00:04.6]} 57. Rb5 {[%clk 0:00:03.5]} 57... Qc7+ {[%clk 0:00:04.7]} 58.
Kd4 {[%clk 0:00:03.3]} 58... Qd7+ {[%clk 0:00:04.2]} 59. Kc3 {[%clk 0:00:03.4]}
59... Ka6 {[%clk 0:00:03.6]} 60. Rd5 {[%clk 0:00:03.1]} 60... Qc6 {[%clk
0:00:03]} 61. Rb5 {[%clk 0:00:03.2]} 61... Qxb5 {[%clk 0:00:02.9]} 62. cxb5+
{[%clk 0:00:03.4]} 62... Kxb5 {[%clk 0:00:03.5]} 63. Kb2 {[%clk 0:00:04.1]}
63... a4 {[%clk 0:00:03.5]} 64. bxa4+ {[%clk 0:00:04.3]} 64... Kxa4 {[%clk
0:00:03.4]} 1/2-1/2

[Event "*** SCC Grand Prix: Titled Tuesday Blitz"]
[Site "Chess.com"]
[Date "2020.09.08"]
[Round "4"]
[White "Karacsonyi_Gellert"]
[Black "ChronicUnhappiness"]
[Result "0-1"]
[WhiteElo "2628"]
[BlackElo "2458"]
[TimeControl "180+1"]
[EndTime "10:41:17 PDT"]
[Termination "ChronicUnhappiness won by resignation"]

1. e4 {[%clk 0:03:00.9]} 1... c5 {[%clk 0:02:59]} 2. Nf3 {[%clk 0:03:00.1]} 2...
Nc6 {[%clk 0:02:58.7]} 3. d4 {[%clk 0:02:59.7]} 3... cxd4 {[%clk 0:02:58.9]} 4.
Nxd4 {[%clk 0:03:00.6]} 4... Nf6 {[%clk 0:02:59.2]} 5. Nc3 {[%clk 0:02:59.5]}
5... e5 {[%clk 0:02:59.4]} 6. Nf5 {[%clk 0:02:59.2]} 6... d5 {[%clk 0:02:57.5]}
7. exd5 {[%clk 0:03:00.1]} 7... Bxf5 {[%clk 0:02:55.3]} 8. dxc6 {[%clk
0:02:58.9]} 8... Qxd1+ {[%clk 0:02:46.5]} 9. Nxd1 {[%clk 0:02:59.8]} 9... bxc6
{[%clk 0:02:46.9]} 10. Ne3 {[%clk 0:02:59.4]} 10... Be6 {[%clk 0:02:22.2]} 11.
Nc4 {[%clk 0:02:59]} 11... Nd7 {[%clk 0:02:21.5]} 12. Be3 {[%clk 0:02:57.1]}
12... f6 {[%clk 0:02:17.7]} 13. O-O-O {[%clk 0:02:56.6]} 13... Bc5 {[%clk
0:02:13.7]} 14. Be2 {[%clk 0:02:39.5]} 14... Bxe3+ {[%clk 0:02:13]} 15. fxe3
{[%clk 0:02:40.4]} 15... Ke7 {[%clk 0:02:11.9]} 16. Na5 {[%clk 0:02:33.2]} 16...
Rac8 {[%clk 0:02:08.2]} 17. Bf3 {[%clk 0:02:31.2]} 17... Nb8 {[%clk 0:01:50]}
18. Rd2 {[%clk 0:02:27.3]} 18... f5 {[%clk 0:01:48.8]} 19. Rhd1 {[%clk
0:02:17.9]} 19... e4 {[%clk 0:01:47.8]} 20. Be2 {[%clk 0:02:18.4]} 20... Rhd8
{[%clk 0:01:40.3]} 21. Nb7 {[%clk 0:02:18.4]} 21... Rxd2 {[%clk 0:01:39.5]} 22.
Rxd2 {[%clk 0:02:19.3]} 22... Nd7 {[%clk 0:01:38.7]} 23. Nd6 {[%clk 0:02:15.4]}
23... Rb8 {[%clk 0:01:32.9]} 24. b3 {[%clk 0:02:09]} 24... g6 {[%clk 0:01:31.7]}
25. Bc4 {[%clk 0:02:05.5]} 25... Ne5 {[%clk 0:01:27.7]} 26. Bxe6 {[%clk
0:02:02.6]} 26... Kxe6 {[%clk 0:01:28.6]} 27. c4 {[%clk 0:01:53.7]} 27... Ng4
{[%clk 0:01:27.3]} 28. g3 {[%clk 0:01:19.6]} 28... Nxe3 {[%clk 0:01:24.1]} 29.
c5 {[%clk 0:01:10.2]} 29... Nd5 {[%clk 0:01:18]} 30. Nc4 {[%clk 0:01:08.3]}
30... a5 {[%clk 0:01:15.1]} 31. Nxa5 {[%clk 0:00:43.6]} 31... Rb5 {[%clk
0:01:13]} 32. Nxc6 {[%clk 0:00:43.9]} 32... Rxc5+ {[%clk 0:01:12.6]} 33. Rc2
{[%clk 0:00:44.5]} 33... Kd6 {[%clk 0:01:03.3]} 34. Nd4 {[%clk 0:00:39.7]} 34...
Rxc2+ {[%clk 0:00:52.1]} 35. Nxc2 {[%clk 0:00:40.6]} 35... g5 {[%clk 0:00:50.8]}
36. a4 {[%clk 0:00:37.5]} 36... f4 {[%clk 0:00:50.2]} 37. gxf4 {[%clk
0:00:37.9]} 37... gxf4 {[%clk 0:00:49.7]} 38. Kd2 {[%clk 0:00:37]} 38... Kc5
{[%clk 0:00:48.1]} 39. Ke2 {[%clk 0:00:25.1]} 39... Nb4 {[%clk 0:00:28.1]} 40.
Ne1 {[%clk 0:00:21.8]} 40... Kd4 {[%clk 0:00:27.1]} 41. a5 {[%clk 0:00:20.2]}
41... Kc5 {[%clk 0:00:24.5]} 42. Kd2 {[%clk 0:00:16.9]} 42... Kb5 {[%clk
0:00:24.1]} 43. Ng2 {[%clk 0:00:17.2]} 43... f3 {[%clk 0:00:23.7]} 44. Ne3
{[%clk 0:00:08.7]} 44... Kxa5 {[%clk 0:00:23.9]} 45. Nc4+ {[%clk 0:00:09.2]}
45... Ka6 {[%clk 0:00:22.6]} 46. Nd6 {[%clk 0:00:09.7]} 46... f2 {[%clk
0:00:21.7]} 47. Ke2 {[%clk 0:00:09.6]} 47... e3 {[%clk 0:00:22.1]} 48. Nf5
{[%clk 0:00:03.7]} 48... Nd5 {[%clk 0:00:22.1]} 49. Nd4 {[%clk 0:00:02.3]} 49...
Ka5 {[%clk 0:00:20.8]} 50. Nc6+ {[%clk 0:00:02.1]} 50... Kb5 {[%clk 0:00:20.4]}
51. Nd4+ {[%clk 0:00:01.5]} 51... Kb4 {[%clk 0:00:20.6]} 52. Ne6 {[%clk
0:00:02]} 52... Kxb3 {[%clk 0:00:20.1]} 53. Ng5 {[%clk 0:00:02.5]} 53... h5
{[%clk 0:00:19.1]} 54. Ne6 {[%clk 0:00:02]} 54... Kc3 {[%clk 0:00:18.5]} 55. h4
{[%clk 0:00:02.2]} 55... Kc4 {[%clk 0:00:17]} 56. Ng7 {[%clk 0:00:02.3]} 56...
Nf4+ {[%clk 0:00:16.6]} 57. Kf1 {[%clk 0:00:02.2]} 57... Kd3 {[%clk 0:00:16.7]}
58. Nf5 {[%clk 0:00:02.3]} 58... Kd2 {[%clk 0:00:16.2]} 59. Ng3 {[%clk
0:00:02.6]} 59... e2+ {[%clk 0:00:15.6]} 60. Nxe2 {[%clk 0:00:03.1]} 60... Nxe2
{[%clk 0:00:16.5]} 61. Kxf2 {[%clk 0:00:04]} 61... Nf4 {[%clk 0:00:14.8]} 62.
Kf3 {[%clk 0:00:03.5]} 62... Ng6 {[%clk 0:00:14.9]} 63. Ke4 {[%clk 0:00:01.8]}
63... Nxh4 {[%clk 0:00:14.8]} 64. Kf4 {[%clk 0:00:02.7]} 64... Ng6+ {[%clk
0:00:14.9]} 65. Kg5 {[%clk 0:00:03.2]} 65... h4 {[%clk 0:00:15.8]} 66. Kg4
{[%clk 0:00:03.9]} 66... Ke3 {[%clk 0:00:16]} 67. Kh3 {[%clk 0:00:04.3]} 67...
Kf4 {[%clk 0:00:16.5]} 68. Kg2 {[%clk 0:00:04.8]} 68... Kg4 {[%clk 0:00:17.4]}
69. Kh2 {[%clk 0:00:05.7]} 69... h3 {[%clk 0:00:17.7]} 70. Kg1 {[%clk 0:00:06]}
70... Nh4 {[%clk 0:00:18.6]} 71. Kh1 {[%clk 0:00:06.4]} 71... Kg3 {[%clk
0:00:18]} 72. Kg1 {[%clk 0:00:06.7]} 72... Nf5 {[%clk 0:00:18.2]} 73. Kh1 {[%clk
0:00:07.6]} 73... Ne3 {[%clk 0:00:18.4]} 74. Kg1 {[%clk 0:00:08.5]} 74... Ng4
{[%clk 0:00:18.5]} 75. Kh1 {[%clk 0:00:09.4]} 75... Kf3 {[%clk 0:00:18.2]} 76.
Kg1 {[%clk 0:00:10.3]} 76... Kg3 {[%clk 0:00:18.6]} 77. Kf1 {[%clk 0:00:10]}
77... Nf2 {[%clk 0:00:18.6]} 0-1

[Event "*** SCC Grand Prix: Titled Tuesday Blitz"]
[Site "Chess.com"]
[Date "2020.09.08"]
[Round "4"]
[White "parnali1611"]
[Black "PoppingCheckmates"]
[Result "1/2-1/2"]
[WhiteElo "2159"]
[BlackElo "2385"]
[TimeControl "180+1"]
[EndTime "10:41:21 PDT"]
[Termination "Game drawn - insufficient material"]

1. d4 {[%clk 0:03:00.9]} 1... g6 {[%clk 0:03:00.2]} 2. e4 {[%clk 0:02:59.1]}
2... Bg7 {[%clk 0:03:00.8]} 3. Be3 {[%clk 0:02:55.3]} 3... d6 {[%clk 0:02:59.2]}
4. c4 {[%clk 0:02:46.1]} 4... c5 {[%clk 0:02:55.7]} 5. Nc3 {[%clk 0:02:46.4]}
5... cxd4 {[%clk 0:02:55.7]} 6. Bxd4 {[%clk 0:02:46.8]} 6... Nf6 {[%clk
0:02:56]} 7. Nf3 {[%clk 0:02:45.5]} 7... Nc6 {[%clk 0:02:56.3]} 8. Be2 {[%clk
0:02:45.2]} 8... Nxd4 {[%clk 0:02:55.5]} 9. Nxd4 {[%clk 0:02:44.8]} 9... O-O
{[%clk 0:02:55.7]} 10. O-O {[%clk 0:02:43.5]} 10... b6 {[%clk 0:02:55.7]} 11. f3
{[%clk 0:02:42]} 11... Bb7 {[%clk 0:02:55.7]} 12. Nd5 {[%clk 0:02:41.1]} 12...
Nxd5 {[%clk 0:02:54.8]} 13. cxd5 {[%clk 0:02:38.3]} 13... Rc8 {[%clk 0:02:53.9]}
14. Kh1 {[%clk 0:02:35.5]} 14... Qc7 {[%clk 0:02:53.6]} 15. Qd3 {[%clk
0:02:18.9]} 15... Qc5 {[%clk 0:02:48.7]} 16. Nb3 {[%clk 0:02:12.5]} 16... Qc2
{[%clk 0:02:47.6]} 17. Rac1 {[%clk 0:01:41.1]} 17... Qxd3 {[%clk 0:02:40.8]} 18.
Bxd3 {[%clk 0:01:40.7]} 18... Bxb2 {[%clk 0:02:41.4]} 19. Rb1 {[%clk 0:01:40.1]}
19... Bg7 {[%clk 0:02:33.5]} 20. Na5 {[%clk 0:01:38.5]} 20... Ba8 {[%clk
0:02:31]} 21. Nc4 {[%clk 0:01:25]} 21... Rc5 {[%clk 0:02:30.3]} 22. a4 {[%clk
0:01:21.1]} 22... Rfc8 {[%clk 0:02:30.5]} 23. Rfc1 {[%clk 0:01:19.6]} 23... Bb7
{[%clk 0:02:24.8]} 24. g3 {[%clk 0:00:39.7]} 24... Ba6 {[%clk 0:02:24.4]} 25.
Rb4 {[%clk 0:00:38.9]} 25... b5 {[%clk 0:02:16.8]} 26. axb5 {[%clk 0:00:37.9]}
26... Bxb5 {[%clk 0:02:17.7]} 27. Kg2 {[%clk 0:00:34.3]} 27... a5 {[%clk
0:02:17.5]} 28. Nxa5 {[%clk 0:00:27.1]} 28... Bxd3 {[%clk 0:02:17]} 29. Rxc5
{[%clk 0:00:25.2]} 29... dxc5 {[%clk 0:02:16.1]} 30. Rb7 {[%clk 0:00:24.3]}
30... c4 {[%clk 0:02:13.6]} 31. Nc6 {[%clk 0:00:24.8]} 31... Bf8 {[%clk
0:02:06]} 32. e5 {[%clk 0:00:17]} 32... c3 {[%clk 0:02:04.9]} 33. Nb4 {[%clk
0:00:16.8]} 33... c2 {[%clk 0:02:04.5]} 34. Nxd3 {[%clk 0:00:16.6]} 34... c1=Q
{[%clk 0:02:04.3]} 35. Nxc1 {[%clk 0:00:16.2]} 35... Rxc1 {[%clk 0:02:05.2]} 36.
Rb8 {[%clk 0:00:16.2]} 36... Rd1 {[%clk 0:02:05.2]} 37. Rd8 {[%clk 0:00:15.9]}
37... Rd2+ {[%clk 0:01:46.2]} 38. Kh3 {[%clk 0:00:15.2]} 38... h5 {[%clk
0:01:44.9]} 39. f4 {[%clk 0:00:15.1]} 39... Kg7 {[%clk 0:01:32.6]} 40. Rd7
{[%clk 0:00:13.6]} 40... Kh7 {[%clk 0:01:32.6]} 41. Rd8 {[%clk 0:00:13.3]} 41...
Bh6 {[%clk 0:01:19.2]} 42. Rd7 {[%clk 0:00:12.6]} 42... Kg7 {[%clk 0:01:19.2]}
43. d6 {[%clk 0:00:10.3]} 43... exd6 {[%clk 0:01:18.5]} 44. e6 {[%clk
0:00:10.5]} 44... Kf6 {[%clk 0:01:10.7]} 45. exf7 {[%clk 0:00:08.2]} 45... d5
{[%clk 0:00:58.2]} 46. f5 {[%clk 0:00:08.5]} 46... gxf5 {[%clk 0:00:53.8]} 47.
Rd6+ {[%clk 0:00:08.2]} 47... Kxf7 {[%clk 0:00:45.9]} 48. Rxh6 {[%clk
0:00:08.7]} 48... d4 {[%clk 0:00:46.1]} 49. Rd6 {[%clk 0:00:08.9]} 49... d3
{[%clk 0:00:44.9]} 50. Rd4 {[%clk 0:00:08.8]} 50... Kg6 {[%clk 0:00:44.3]} 51.
Rd6+ {[%clk 0:00:08]} 51... Kg5 {[%clk 0:00:44.6]} 52. Rd4 {[%clk 0:00:08]}
52... Kf6 {[%clk 0:00:44.7]} 53. Rd7 {[%clk 0:00:07.4]} 53... Ke5 {[%clk
0:00:43.6]} 54. Rd8 {[%clk 0:00:07.5]} 54... Ke4 {[%clk 0:00:43.2]} 55. Re8+
{[%clk 0:00:07.3]} 55... Kf3 {[%clk 0:00:43.2]} 56. Rd8 {[%clk 0:00:07.6]} 56...
Ke2 {[%clk 0:00:29.6]} 57. Re8+ {[%clk 0:00:07.1]} 57... Kf2 {[%clk 0:00:27.7]}
58. Kh4 {[%clk 0:00:07.2]} 58... Re2 {[%clk 0:00:27.3]} 59. Rd8 {[%clk
0:00:07.4]} 59... d2 {[%clk 0:00:27.6]} 60. Kg5 {[%clk 0:00:07]} 60... Ke1
{[%clk 0:00:24.9]} 61. h4 {[%clk 0:00:07.1]} 61... d1=Q {[%clk 0:00:21.2]} 62.
Rxd1+ {[%clk 0:00:07.6]} 62... Kxd1 {[%clk 0:00:22.1]} 63. Kxh5 {[%clk
0:00:07.7]} 63... Rg2 {[%clk 0:00:17.6]} 64. Kg5 {[%clk 0:00:08.2]} 64... Ke2
{[%clk 0:00:16.1]} 65. Kxf5 {[%clk 0:00:09.1]} 65... Rxg3 {[%clk 0:00:16.3]} 66.
h5 {[%clk 0:00:09.3]} 66... Rf3+ {[%clk 0:00:08.9]} 67. Kg6 {[%clk 0:00:09.2]}
67... Rg3+ {[%clk 0:00:09.1]} 68. Kf6 {[%clk 0:00:08.6]} 68... Rf3+ {[%clk
0:00:09.5]} 69. Kg6 {[%clk 0:00:09]} 69... Rg3+ {[%clk 0:00:09.5]} 70. Kf6
{[%clk 0:00:09.1]} 70... Ra3 {[%clk 0:00:10.2]} 71. h6 {[%clk 0:00:08.6]} 71...
Ra6+ {[%clk 0:00:10.9]} 72. Kg7 {[%clk 0:00:08.6]} 72... Kf3 {[%clk 0:00:11.5]}
73. h7 {[%clk 0:00:08.5]} 73... Ra7+ {[%clk 0:00:12.2]} 74. Kg8 {[%clk
0:00:08.7]} 74... Ra8+ {[%clk 0:00:12.6]} 75. Kg7 {[%clk 0:00:08.3]} 75... Ra7+
{[%clk 0:00:13]} 76. Kg8 {[%clk 0:00:08.7]} 76... Rxh7 {[%clk 0:00:12.6]} 77.
Kxh7 {[%clk 0:00:08.6]} 1/2-1/2

[Event "*** SCC Grand Prix: Titled Tuesday Blitz"]
[Site "Chess.com"]
[Date "2020.09.08"]
[Round "4"]
[White "AccioChess"]
[Black "FMalexhdez"]
[Result "1-0"]
[WhiteElo "2405"]
[BlackElo "2218"]
[TimeControl "180+1"]
[EndTime "10:41:25 PDT"]
[Termination "AccioChess won on time"]

1. e4 {[%clk 0:03:00.9]} 1... c5 {[%clk 0:02:59.4]} 2. Nf3 {[%clk 0:03:00.4]}
2... d6 {[%clk 0:02:59.8]} 3. d4 {[%clk 0:03:01]} 3... cxd4 {[%clk 0:03:00.4]}
4. Nxd4 {[%clk 0:03:01.9]} 4... Nf6 {[%clk 0:03:00.9]} 5. Nc3 {[%clk 0:03:02.3]}
5... a6 {[%clk 0:03:01.4]} 6. Bg5 {[%clk 0:03:02.9]} 6... e6 {[%clk 0:03:01.3]}
7. f4 {[%clk 0:03:03]} 7... Nbd7 {[%clk 0:03:01.4]} 8. Qf3 {[%clk 0:03:02.4]}
8... Qc7 {[%clk 0:03:01.7]} 9. O-O-O {[%clk 0:03:02.1]} 9... b5 {[%clk
0:03:01.4]} 10. Bd3 {[%clk 0:03:01.2]} 10... Bb7 {[%clk 0:02:53.3]} 11. Rhe1
{[%clk 0:02:59.5]} 11... h6 {[%clk 0:02:51.7]} 12. Bh4 {[%clk 0:02:52.2]} 12...
g5 {[%clk 0:02:51.1]} 13. fxg5 {[%clk 0:02:53.1]} 13... Ne5 {[%clk 0:02:48.8]}
14. Qe2 {[%clk 0:02:40.6]} 14... Nfd7 {[%clk 0:02:23]} 15. g6 {[%clk 0:02:01.7]}
15... Nxg6 {[%clk 0:02:18.1]} 16. Nxe6 {[%clk 0:01:49.8]} 16... fxe6 {[%clk
0:02:14.6]} 17. Qh5 {[%clk 0:01:41]} 17... Ne5 {[%clk 0:02:11.5]} 18. Bf6 {[%clk
0:01:36.8]} 18... Rg8 {[%clk 0:02:00.3]} 19. Nd5 {[%clk 0:01:26.2]} 19... Nxd3+
{[%clk 0:01:30]} 20. Rxd3 {[%clk 0:01:23.8]} 20... Bxd5 {[%clk 0:01:18.8]} 21.
exd5 {[%clk 0:01:24.7]} 21... e5 {[%clk 0:01:19.1]} 22. Rde3 {[%clk 0:00:43.6]}
22... Rc8 {[%clk 0:01:17.1]} 23. Rc3 {[%clk 0:00:35.2]} 23... Qd7 {[%clk
0:01:11.4]} 24. Rxc8+ {[%clk 0:00:23.8]} 24... Qxc8 {[%clk 0:01:11.2]} 25. Bxe5
{[%clk 0:00:24.6]} 25... dxe5 {[%clk 0:01:05.2]} 26. Rxe5+ {[%clk 0:00:25.5]}
26... Kd8 {[%clk 0:00:55.1]} 27. Re6 {[%clk 0:00:25]} 27... Qc4 {[%clk
0:00:22.4]} 28. Rxg6 {[%clk 0:00:22.7]} 28... Qf1+ {[%clk 0:00:21.5]} 29. Kd2
{[%clk 0:00:22.7]} 29... Qf2+ {[%clk 0:00:20.4]} 30. Kd1 {[%clk 0:00:19.5]}
30... Qd4+ {[%clk 0:00:19.2]} 31. Kc1 {[%clk 0:00:13.4]} 31... Qf4+ {[%clk
0:00:18.1]} 32. Kd1 {[%clk 0:00:13]} 32... Qd4+ {[%clk 0:00:12.2]} 33. Ke2
{[%clk 0:00:11.5]} 33... Rxg6 {[%clk 0:00:12.9]} 34. Qxg6 {[%clk 0:00:10.9]}
34... Qe5+ {[%clk 0:00:12.6]} 35. Kf1 {[%clk 0:00:09.7]} 35... Qxd5 {[%clk
0:00:11]} 36. Qb6+ {[%clk 0:00:08.5]} 36... Kd7 {[%clk 0:00:09.7]} 37. Qa7+
{[%clk 0:00:07.9]} 37... Ke6 {[%clk 0:00:08.5]} 38. Qxa6+ {[%clk 0:00:07.8]}
38... Ke5 {[%clk 0:00:07.9]} 39. Qg6 {[%clk 0:00:06.5]} 39... Qd1+ {[%clk
0:00:07.3]} 40. Kf2 {[%clk 0:00:06]} 40... Bc5+ {[%clk 0:00:07.4]} 41. Kg3
{[%clk 0:00:05.1]} 41... Qe1+ {[%clk 0:00:06.4]} 42. Kh3 {[%clk 0:00:05.2]}
42... Qe3+ {[%clk 0:00:05.9]} 43. g3 {[%clk 0:00:05.5]} 43... Qg5 {[%clk
0:00:03.6]} 44. Qe8+ {[%clk 0:00:05.5]} 44... Kd6 {[%clk 0:00:02.9]} 45. Qb8+
{[%clk 0:00:03]} 45... Kc6 {[%clk 0:00:02.5]} 46. Qc8+ {[%clk 0:00:03.2]} 46...
Kb6 {[%clk 0:00:02.7]} 47. Qb8+ {[%clk 0:00:03.5]} 47... Kc6 {[%clk 0:00:03.4]}
48. Qc8+ {[%clk 0:00:03.8]} 48... Kb6 {[%clk 0:00:04]} 49. Qe6+ {[%clk
0:00:03.4]} 49... Kc7 {[%clk 0:00:03.3]} 50. Qf7+ {[%clk 0:00:03.4]} 50... Kc6
{[%clk 0:00:03.1]} 51. c3 {[%clk 0:00:03.8]} 51... Bd6 {[%clk 0:00:02.6]} 52.
Qe8+ {[%clk 0:00:03.8]} 52... Kc7 {[%clk 0:00:01.9]} 53. Qf7+ {[%clk 0:00:03.3]}
53... Kc6 {[%clk 0:00:02.1]} 54. Qe8+ {[%clk 0:00:02.5]} 54... Kc7 {[%clk
0:00:02.5]} 55. Qe4 {[%clk 0:00:02.5]} 55... Kd7 {[%clk 0:00:02]} 56. Qb7+
{[%clk 0:00:01.9]} 56... Ke6 {[%clk 0:00:02]} 57. Qe4+ {[%clk 0:00:02.3]} 57...
Kd7 {[%clk 0:00:02.1]} 58. b4 {[%clk 0:00:03.2]} 58... Qh5+ {[%clk 0:00:01.3]}
59. Kg2 {[%clk 0:00:03.4]} 59... Qf7 {[%clk 0:00:02]} 60. Qb7+ {[%clk
0:00:03.3]} 60... Ke6 {[%clk 0:00:02.4]} 61. Qxb5 {[%clk 0:00:04.2]} 61... Qf5
{[%clk 0:00:01.5]} 62. Qe2+ {[%clk 0:00:04.7]} 62... Qe5 {[%clk 0:00:01.2]} 63.
Qxe5+ {[%clk 0:00:04.6]} 63... Bxe5 {[%clk 0:00:01.7]} 64. c4 {[%clk 0:00:05.2]}
64... Bc3 {[%clk 0:00:01.5]} 65. b5 {[%clk 0:00:05.6]} 65... Kd6 {[%clk
0:00:01.9]} 66. Kf3 {[%clk 0:00:05.9]} 66... Kc5 {[%clk 0:00:02.2]} 67. Ke4
{[%clk 0:00:05.7]} 67... Kxc4 {[%clk 0:00:01.7]} 68. b6 {[%clk 0:00:06.4]} 1-0